[Event "Titled Tuesday Blitz October 11 Early 2022"]
[White "Azarov, Sergei"]
[Black "Kodinets, Konstantin L."]
[WhiteFideId "13501470"]
[BlackFideId "4122011"]
[WhiteElo "2494"]
[BlackElo "2447"]
[Result "1-0"]
[Round "07"]
[TimeControl "180+1"]
[Date "2022.10.12"]
[WhiteClock "0:00:20"]
[BlackClock "0:00:12"]

1. e4 {[%clk 0:03:00]}  e5 {[%clk 0:03:00]} 2. Nf3 {[%clk 0:03:01]}  d6 {[%clk 0:03:00]} 3. Nc3 {[%clk 0:02:59]}  Nf6 {[%clk 0:03:00]} 4. Bc4 {[%clk 0:02:58]}  Be7 {[%clk 0:03:00]} 5. d3 {[%clk 0:02:58]}  O-O {[%clk 0:03:00]} 6. h3 {[%clk 0:02:58]}  Nc6 {[%clk 0:03:00]} 7. a3 {[%clk 0:02:56]}  h6 {[%clk 0:03:00]} 8. g4 {[%clk 0:02:56]}  Nh7 {[%clk 0:03:00]} 9. Be3 {[%clk 0:02:54]}  Be6 {[%clk 0:02:59]} 10. Nd5 {[%clk 0:02:50]}  Bxd5 {[%clk 0:02:59]} 11. Bxd5 {[%clk 0:02:50]}  Ng5 {[%clk 0:02:51]} 12. h4 {[%clk 0:02:48]}  Nxf3+ {[%clk 0:02:51]} 13. Qxf3 {[%clk 0:02:48]}  Bxh4 {[%clk 0:02:50]} 14. O-O-O {[%clk 0:02:29]}  Nd4 {[%clk 0:02:48]} 15. Bxd4 {[%clk 0:02:12]}  exd4 {[%clk 0:02:49]} 16. Kb1 {[%clk 0:02:11]}  c6 {[%clk 0:02:45]} 17. Bb3 {[%clk 0:02:10]}  Bg5 {[%clk 0:02:21]} 18. Rdf1 {[%clk 0:01:40]}  Qf6 {[%clk 0:02:13]} 19. Qxf6 {[%clk 0:01:39]}  Bxf6 {[%clk 0:02:13]} 20. f4 {[%clk 0:01:40]}  a5 {[%clk 0:02:04]} 21. Rh5 {[%clk 0:01:36]}  a4 {[%clk 0:02:01]} 22. Ba2 {[%clk 0:01:35]}  b6 {[%clk 0:01:59]} 23. g5 {[%clk 0:01:32]}  Ra5 {[%clk 0:01:51]} 24. Rfh1 {[%clk 0:01:29]}  Bxg5 {[%clk 0:01:50]} 25. fxg5 {[%clk 0:01:28]}  Rxg5 {[%clk 0:01:50]} 26. Rxg5 {[%clk 0:01:28]}  hxg5 {[%clk 0:01:51]} 27. Rg1 {[%clk 0:01:26]}  g6 {[%clk 0:01:51]} 28. Rxg5 {[%clk 0:01:26]}  Kg7 {[%clk 0:01:52]} 29. b3 {[%clk 0:01:09]}  axb3 {[%clk 0:01:47]} 30. Bxb3 {[%clk 0:01:10]}  b5 {[%clk 0:01:41]} 31. a4 {[%clk 0:01:07]}  f6 {[%clk 0:01:38]} 32. Rg1 {[%clk 0:01:05]}  Rb8 {[%clk 0:01:37]} 33. axb5 {[%clk 0:01:02]}  Rxb5 {[%clk 0:01:36]} 34. Kc1 {[%clk 0:01:02]}  f5 {[%clk 0:01:18]} 35. exf5 {[%clk 0:00:54]}  Rxf5 {[%clk 0:01:18]} 36. Re1 {[%clk 0:00:49]}  g5 {[%clk 0:01:01]} 37. Kd2 {[%clk 0:00:45]}  g4 {[%clk 0:00:52]} 38. Rg1 {[%clk 0:00:44]}  Rg5 {[%clk 0:00:48]} 39. Be6 {[%clk 0:00:44]}  g3 {[%clk 0:00:48]} 40. Bd7 {[%clk 0:00:38]}  c5 {[%clk 0:00:42]} 41. Ke2 {[%clk 0:00:36]}  Kf6 {[%clk 0:00:37]} 42. Kf3 {[%clk 0:00:35]}  Rg7 {[%clk 0:00:30]} 43. Bc6 {[%clk 0:00:32]}  Rc7 {[%clk 0:00:27]} 44. Bd5 {[%clk 0:00:28]}  Ke5 {[%clk 0:00:27]} 45. Bg8 {[%clk 0:00:20]}  Rg7 {[%clk 0:00:13]} 46. Rxg3 {[%clk 0:00:20]}  Rxg3+ {[%clk 0:00:13]} 47. Kxg3 {[%clk 0:00:20]}  d5 {[%clk 0:00:13]} 48. Kf3 {[%clk 0:00:20]}  Kd6 {[%clk 0:00:12]} 49. Kf4 {[%clk 0:00:20]}  c4 {[%clk 0:00:12]} 50. dxc4 {[%clk 0:00:20]} 1-0


[Site "https://www.chess.com"]

[Event "Titled Tuesday Blitz October 11 Early 2022"]
[White "Bacrot, Etienne"]
[Black "Shuvalova, Polina"]
[WhiteFideId "605506"]
[BlackFideId "24171760"]
[WhiteElo "2666"]
[BlackElo "2392"]
[Result "1/2-1/2"]
[Round "07"]
[TimeControl "180+1"]
[Date "2022.10.11"]
[WhiteClock "0:00:06"]
[BlackClock "0:00:08"]

1. Nf3 {[%clk 0:03:00]}  d5 {[%clk 0:02:56]} 2. g3 {[%clk 0:03:00]}  g6 {[%clk 0:02:50]} 3. Bg2 {[%clk 0:03:00]}  Bg7 {[%clk 0:02:50]} 4. O-O {[%clk 0:02:59]}  Nf6 {[%clk 0:02:51]} 5. b3 {[%clk 0:02:58]}  O-O {[%clk 0:02:50]} 6. Bb2 {[%clk 0:02:58]}  c5 {[%clk 0:02:47]} 7. c4 {[%clk 0:02:52]}  Nc6 {[%clk 0:02:41]} 8. cxd5 {[%clk 0:02:50]}  Nxd5 {[%clk 0:02:41]} 9. Bxg7 {[%clk 0:02:50]}  Kxg7 {[%clk 0:02:42]} 10. Qc1 {[%clk 0:02:49]}  Qd6 {[%clk 0:02:36]} 11. Nc3 {[%clk 0:02:46]}  b6 {[%clk 0:01:56]} 12. Nxd5 {[%clk 0:02:20]}  Qxd5 {[%clk 0:01:56]} 13. d4 {[%clk 0:02:15]}  Bb7 {[%clk 0:01:39]} 14. dxc5 {[%clk 0:02:14]}  bxc5 {[%clk 0:01:25]} 15. Rd1 {[%clk 0:01:59]}  Nd4 {[%clk 0:01:18]} 16. Qb2 {[%clk 0:01:55]}  f6 {[%clk 0:01:07]} 17. Ne1 {[%clk 0:01:06]}  Qd7 {[%clk 0:01:07]} 18. Bxb7 {[%clk 0:00:49]}  Qxb7 {[%clk 0:01:06]} 19. e3 {[%clk 0:00:43]}  Ne6 {[%clk 0:01:00]} 20. h4 {[%clk 0:00:38]}  Rfd8 {[%clk 0:01:00]} 21. Qe2 {[%clk 0:00:36]}  Qe4 {[%clk 0:00:59]} 22. Qf3 {[%clk 0:00:33]}  Qxf3 {[%clk 0:00:57]} 23. Nxf3 {[%clk 0:00:34]}  a5 {[%clk 0:00:57]} 24. Rxd8 {[%clk 0:00:32]}  Rxd8 {[%clk 0:00:58]} 25. Rc1 {[%clk 0:00:32]}  a4 {[%clk 0:00:49]} 26. bxa4 {[%clk 0:00:32]}  Rd3 {[%clk 0:00:50]} 27. Ne1 {[%clk 0:00:17]}  Ra3 {[%clk 0:00:50]} 28. Rc4 {[%clk 0:00:16]}  Rxa2 {[%clk 0:00:48]} 29. Kf1 {[%clk 0:00:14]}  h5 {[%clk 0:00:45]} 30. Nd3 {[%clk 0:00:13]}  Kf7 {[%clk 0:00:46]} 31. Ke1 {[%clk 0:00:12]}  Ke8 {[%clk 0:00:45]} 32. Kd1 {[%clk 0:00:09]}  Kd7 {[%clk 0:00:45]} 33. Kc1 {[%clk 0:00:09]}  Kd6 {[%clk 0:00:42]} 34. Kb1 {[%clk 0:00:10]}  Rd2 {[%clk 0:00:40]} 35. Nf4 {[%clk 0:00:06]}  Rxf2 {[%clk 0:00:29]} 36. Nxe6 {[%clk 0:00:06]}  Kxe6 {[%clk 0:00:29]} 37. a5 {[%clk 0:00:07]}  Kd6 {[%clk 0:00:25]} 38. a6 {[%clk 0:00:07]}  Kc6 {[%clk 0:00:25]} 39. Rxc5+ {[%clk 0:00:05]}  Kb6 {[%clk 0:00:25]} 40. a7 {[%clk 0:00:05]}  Kxa7 {[%clk 0:00:25]} 41. Rc7+ {[%clk 0:00:05]}  Kb6 {[%clk 0:00:26]} 42. Rxe7 {[%clk 0:00:06]}  Rf3 {[%clk 0:00:24]} 43. Kc2 {[%clk 0:00:06]}  Kc5 {[%clk 0:00:23]} 44. Kd3 {[%clk 0:00:06]}  Rxg3 {[%clk 0:00:22]} 45. Re6 {[%clk 0:00:07]}  f5 {[%clk 0:00:22]} 46. Ke2 {[%clk 0:00:06]}  Kd5 {[%clk 0:00:22]} 47. Ra6 {[%clk 0:00:05]}  Ke4 {[%clk 0:00:20]} 48. Kf2 {[%clk 0:00:05]}  Rg4 {[%clk 0:00:20]} 49. Rb6 {[%clk 0:00:06]}  Ke5 {[%clk 0:00:12]} 50. Kf3 {[%clk 0:00:05]}  Kd5 {[%clk 0:00:12]} 51. Ra6 {[%clk 0:00:05]}  Ke5 {[%clk 0:00:12]} 52. Rb6 {[%clk 0:00:05]}  Rxh4 {[%clk 0:00:11]} 53. Rxg6 {[%clk 0:00:05]}  Rg4 {[%clk 0:00:12]} 54. Rh6 {[%clk 0:00:05]}  h4 {[%clk 0:00:12]} 55. Ra6 {[%clk 0:00:05]}  Re4 {[%clk 0:00:12]} 56. Rh6 {[%clk 0:00:05]}  Rg4 {[%clk 0:00:10]} 57. Kf2 {[%clk 0:00:05]}  Ke4 {[%clk 0:00:08]} 58. Re6+ {[%clk 0:00:06]}  Kd5 {[%clk 0:00:07]} 59. Rh6 {[%clk 0:00:06]}  Ke5 {[%clk 0:00:07]} 60. Kf3 {[%clk 0:00:06]}  Rg3+ {[%clk 0:00:07]} 61. Kf2 {[%clk 0:00:06]}  Rg4 {[%clk 0:00:08]} 62. Kf3 {[%clk 0:00:07]}  Kd5 {[%clk 0:00:08]} 63. Kf2 {[%clk 0:00:06]}  Ke5 {[%clk 0:00:08]} 1/2-1/2


[Site "https://www.chess.com"]

[Event "Titled Tuesday Blitz October 11 Early 2022"]
[White "Barria Zuniga, Daniel"]
[Black "Titichoca Daza, Daniel"]
[WhiteFideId "3400816"]
[BlackFideId "3309550"]
[WhiteElo "2414"]
[BlackElo "2105"]
[Result "1-0"]
[Round "07"]
[TimeControl "180+1"]
[Date "2022.10.12"]
[WhiteClock "0:00:34"]
[BlackClock "0:00:02"]

1. d4 {[%clk 0:03:00]}  d5 {[%clk 0:02:35]} 2. c4 {[%clk 0:03:01]}  dxc4 {[%clk 0:02:36]} 3. Nf3 {[%clk 0:03:00]}  Nf6 {[%clk 0:02:36]} 4. e3 {[%clk 0:03:01]}  e6 {[%clk 0:02:36]} 5. Bxc4 {[%clk 0:03:00]}  a6 {[%clk 0:02:36]} 6. Nc3 {[%clk 0:03:00]}  c5 {[%clk 0:02:36]} 7. O-O {[%clk 0:02:59]}  Nc6 {[%clk 0:02:36]} 8. Qe2 {[%clk 0:02:57]}  Be7 {[%clk 0:02:31]} 9. dxc5 {[%clk 0:02:54]}  Bxc5 {[%clk 0:02:30]} 10. e4 {[%clk 0:02:54]}  Ng4 {[%clk 0:02:23]} 11. Bf4 {[%clk 0:02:23]}  Qf6 {[%clk 0:02:20]} 12. Bg3 {[%clk 0:02:20]}  Nge5 {[%clk 0:02:13]} 13. Nxe5 {[%clk 0:02:15]}  Nxe5 {[%clk 0:02:14]} 14. Bb3 {[%clk 0:02:14]}  O-O {[%clk 0:02:06]} 15. Kh1 {[%clk 0:02:12]}  b5 {[%clk 0:01:55]} 16. f4 {[%clk 0:02:11]}  Nc6 {[%clk 0:01:55]} 17. e5 {[%clk 0:02:08]}  Qe7 {[%clk 0:01:50]} 18. Qg4 {[%clk 0:01:57]}  Nd4 {[%clk 0:01:45]} 19. Bh4 {[%clk 0:01:55]}  Qc7 {[%clk 0:01:13]} 20. Rac1 {[%clk 0:01:44]}  Bb7 {[%clk 0:01:04]} 21. Bc2 {[%clk 0:01:13]}  Nxc2 {[%clk 0:00:54]} 22. Rxc2 {[%clk 0:01:12]}  Be7 {[%clk 0:00:33]} 23. Bf6 {[%clk 0:00:53]}  Bxf6 {[%clk 0:00:31]} 24. exf6 {[%clk 0:00:53]}  g6 {[%clk 0:00:32]} 25. Qg5 {[%clk 0:00:52]}  Qd8 {[%clk 0:00:07]} 26. Rd2 {[%clk 0:00:47]}  Bd5 {[%clk 0:00:04]} 27. Nxd5 {[%clk 0:00:44]}  exd5 {[%clk 0:00:05]} 28. Rxd5 {[%clk 0:00:44]}  Qb6 {[%clk 0:00:04]} 29. Rfd1 {[%clk 0:00:38]}  Rfe8 {[%clk 0:00:04]} 30. h4 {[%clk 0:00:37]}  h5 {[%clk 0:00:02]} 31. Rd6 {[%clk 0:00:34]} 1-0


[Site "https://www.chess.com"]

[Event "Titled Tuesday Blitz October 11 Early 2022"]
[White "Baskakov, Egor"]
[Black "Migot, Tangi"]
[WhiteFideId "24197866"]
[BlackFideId "662445"]
[WhiteElo "2211"]
[BlackElo "2486"]
[Result "1-0"]
[Round "07"]
[TimeControl "180+1"]
[Date "2022.10.12"]
[WhiteClock "0:01:10"]
[BlackClock "0:00:11"]

1. e4 {[%clk 0:03:00]}  c5 {[%clk 0:03:00]} 2. Nf3 {[%clk 0:03:00]}  Nc6 {[%clk 0:03:00]} 3. Nc3 {[%clk 0:03:00]}  d6 {[%clk 0:03:00]} 4. d4 {[%clk 0:03:00]}  cxd4 {[%clk 0:03:00]} 5. Nxd4 {[%clk 0:03:01]}  Nf6 {[%clk 0:03:00]} 6. g3 {[%clk 0:03:00]}  e5 {[%clk 0:02:58]} 7. Nde2 {[%clk 0:03:00]}  h5 {[%clk 0:02:57]} 8. h3 {[%clk 0:03:00]}  h4 {[%clk 0:02:57]} 9. g4 {[%clk 0:03:00]}  Be7 {[%clk 0:02:56]} 10. Bg2 {[%clk 0:03:01]}  Be6 {[%clk 0:02:54]} 11. O-O {[%clk 0:02:58]}  Nd7 {[%clk 0:02:51]} 12. Nd5 {[%clk 0:02:56]}  g5 {[%clk 0:02:50]} 13. Be3 {[%clk 0:02:55]}  Nf8 {[%clk 0:02:47]} 14. Qd2 {[%clk 0:02:54]}  f6 {[%clk 0:02:47]} 15. f4 {[%clk 0:02:43]}  gxf4 {[%clk 0:02:34]} 16. Bxf4 {[%clk 0:02:42]}  exf4 {[%clk 0:02:33]} 17. Nexf4 {[%clk 0:02:43]}  Ne5 {[%clk 0:02:19]} 18. Kh1 {[%clk 0:02:31]}  Qd7 {[%clk 0:02:06]} 19. Nxe6 {[%clk 0:01:51]}  Nxe6 {[%clk 0:02:06]} 20. Rxf6 {[%clk 0:01:52]}  Rf8 {[%clk 0:01:33]} 21. Rxe6 {[%clk 0:01:49]}  Qxe6 {[%clk 0:01:27]} 22. Nc7+ {[%clk 0:01:48]}  Kd7 {[%clk 0:01:28]} 23. Nxe6 {[%clk 0:01:48]}  Kxe6 {[%clk 0:01:29]} 24. Qd5+ {[%clk 0:01:48]}  Kf6 {[%clk 0:01:26]} 25. Qxb7 {[%clk 0:01:48]}  Rae8 {[%clk 0:01:15]} 26. Rf1+ {[%clk 0:01:46]}  Kg7 {[%clk 0:01:14]} 27. Rxf8 {[%clk 0:01:43]}  Kxf8 {[%clk 0:01:15]} 28. Qxa7 {[%clk 0:01:43]}  Rc8 {[%clk 0:01:11]} 29. c3 {[%clk 0:01:43]}  Kf7 {[%clk 0:01:07]} 30. Bf1 {[%clk 0:01:41]}  Rf8 {[%clk 0:01:05]} 31. Kg2 {[%clk 0:01:40]}  Ke6 {[%clk 0:01:00]} 32. Be2 {[%clk 0:01:30]}  Rf4 {[%clk 0:00:58]} 33. Bd1 {[%clk 0:01:25]}  Rxe4 {[%clk 0:00:47]} 34. Qb7 {[%clk 0:01:15]}  d5 {[%clk 0:00:19]} 35. Bf3 {[%clk 0:01:13]}  Nxf3 {[%clk 0:00:15]} 36. Kxf3 {[%clk 0:01:14]}  Bd6 {[%clk 0:00:15]} 37. Qc8+ {[%clk 0:01:12]}  Ke7 {[%clk 0:00:14]} 38. Qf5 {[%clk 0:01:11]}  Re5 {[%clk 0:00:12]} 39. Qh7+ {[%clk 0:01:12]}  Ke6 {[%clk 0:00:13]} 40. Qxh4 {[%clk 0:01:12]}  Bc5 {[%clk 0:00:13]} 41. Qh6+ {[%clk 0:01:11]}  Kd7 {[%clk 0:00:14]} 42. Qg7+ {[%clk 0:01:11]}  Kd6 {[%clk 0:00:14]} 43. Qf8+ {[%clk 0:01:09]}  Kc6 {[%clk 0:00:14]} 44. Qc8+ {[%clk 0:01:09]}  Kd6 {[%clk 0:00:14]} 45. b4 {[%clk 0:01:09]}  Be3 {[%clk 0:00:10]} 46. Qb8+ {[%clk 0:01:08]}  Ke6 {[%clk 0:00:11]} 47. Qxe5+ {[%clk 0:01:09]}  Kxe5 {[%clk 0:00:11]} 48. Kxe3 {[%clk 0:01:10]} 1-0


[Site "https://www.chess.com"]

[Event "Titled Tuesday Blitz October 11 Early 2022"]
[White "Begunov, Konstantin"]
[Black "Martic, Ivan"]
[WhiteFideId "4118510"]
[BlackFideId "929301"]
[WhiteElo "2225"]
[BlackElo "2355"]
[Result "1-0"]
[Round "07"]
[TimeControl "180+1"]
[Date "2022.10.12"]
[WhiteClock "0:00:52"]
[BlackClock "0:01:42"]

1. d4 {[%clk 0:02:57]}  Nf6 {[%clk 0:02:50]} 2. c4 {[%clk 0:02:57]}  e6 {[%clk 0:02:50]} 3. Nf3 {[%clk 0:02:57]}  d5 {[%clk 0:02:50]} 4. Nc3 {[%clk 0:02:58]}  dxc4 {[%clk 0:02:50]} 5. e4 {[%clk 0:02:57]}  b5 {[%clk 0:02:43]} 6. e5 {[%clk 0:02:55]}  Nd5 {[%clk 0:02:41]} 7. a4 {[%clk 0:02:55]}  b4 {[%clk 0:02:36]} 8. Ne4 {[%clk 0:02:48]}  Ba6 {[%clk 0:02:34]} 9. Bg5 {[%clk 0:02:43]}  Qd7 {[%clk 0:02:23]} 10. Rc1 {[%clk 0:02:37]}  c3 {[%clk 0:02:22]} 11. Bxa6 {[%clk 0:02:32]}  cxb2 {[%clk 0:02:12]} 12. Bb7 {[%clk 0:02:22]}  bxc1=Q {[%clk 0:02:10]} 13. Qxc1 {[%clk 0:02:23]}  Nb6 {[%clk 0:02:08]} 14. a5 {[%clk 0:02:05]}  b3 {[%clk 0:01:52]} 15. axb6 {[%clk 0:01:56]}  axb6 {[%clk 0:01:53]} 16. Bxa8 {[%clk 0:01:55]}  Qb5 {[%clk 0:01:50]} 17. Ned2 {[%clk 0:01:16]}  b2 {[%clk 0:01:47]} 18. Qxc7 {[%clk 0:01:03]}  b1=Q+ {[%clk 0:01:44]} 19. Nxb1 {[%clk 0:01:03]}  Qxb1+ {[%clk 0:01:44]} 20. Ke2 {[%clk 0:00:58]}  Qb5+ {[%clk 0:01:43]} 21. Ke3 {[%clk 0:00:55]}  Qb3+ {[%clk 0:01:42]} 22. Kf4 {[%clk 0:00:52]} 1-0


[Site "https://www.chess.com"]

[Event "Titled Tuesday Blitz October 11 Early 2022"]
[White "Bilan, Danila"]
[Black "Orlov, Georgi"]
[WhiteFideId "24161918"]
[BlackFideId "2011271"]
[WhiteElo "2203"]
[BlackElo "2575"]
[Result "0-1"]
[Round "07"]
[TimeControl "180+1"]
[Date "2022.10.12"]
[WhiteClock "0:00:02"]
[BlackClock "0:01:27"]

1. d4 {[%clk 0:03:00]}  Nf6 {[%clk 0:02:58]} 2. Nf3 {[%clk 0:03:00]}  e6 {[%clk 0:02:58]} 3. g3 {[%clk 0:02:59]}  b5 {[%clk 0:02:57]} 4. Bg2 {[%clk 0:03:00]}  Bb7 {[%clk 0:02:57]} 5. O-O {[%clk 0:02:59]}  c5 {[%clk 0:02:56]} 6. a4 {[%clk 0:02:57]}  b4 {[%clk 0:02:55]} 7. c4 {[%clk 0:02:53]}  cxd4 {[%clk 0:02:54]} 8. Qxd4 {[%clk 0:02:51]}  Qc8 {[%clk 0:02:51]} 9. b3 {[%clk 0:02:42]}  Na6 {[%clk 0:02:47]} 10. Bb2 {[%clk 0:02:11]}  Nc5 {[%clk 0:02:42]} 11. Nbd2 {[%clk 0:02:11]}  d6 {[%clk 0:02:40]} 12. Ng5 {[%clk 0:01:53]}  Bxg2 {[%clk 0:02:37]} 13. Kxg2 {[%clk 0:01:53]}  Qc6+ {[%clk 0:02:35]} 14. Kg1 {[%clk 0:01:42]}  e5 {[%clk 0:02:22]} 15. Qe3 {[%clk 0:01:24]}  h6 {[%clk 0:02:20]} 16. Nh3 {[%clk 0:00:53]}  Be7 {[%clk 0:02:07]} 17. f3 {[%clk 0:00:48]}  g5 {[%clk 0:02:03]} 18. Ne4 {[%clk 0:00:42]}  Nfxe4 {[%clk 0:01:54]} 19. fxe4 {[%clk 0:00:36]}  Qxe4 {[%clk 0:01:50]} 20. Qf2 {[%clk 0:00:12]}  O-O {[%clk 0:01:49]} 21. Qf5 {[%clk 0:00:04]}  Qxf5 {[%clk 0:01:44]} 22. Rxf5 {[%clk 0:00:04]}  Nxb3 {[%clk 0:01:43]} 23. Rd1 {[%clk 0:00:04]}  a5 {[%clk 0:01:37]} 24. Nf2 {[%clk 0:00:03]}  Nc5 {[%clk 0:01:36]} 25. h4 {[%clk 0:00:03]}  f6 {[%clk 0:01:36]} 26. Ng4 {[%clk 0:00:02]}  Kg7 {[%clk 0:01:36]} 27. hxg5 {[%clk 0:00:02]}  hxg5 {[%clk 0:01:35]} 28. Kg2 {[%clk 0:00:02]}  Kg6 {[%clk 0:01:33]} 29. Ne3 {[%clk 0:00:01]}  Nxa4 {[%clk 0:01:31]} 30. Bc1 {[%clk 0:00:02]}  Nc3 {[%clk 0:01:30]} 31. Rdf1 {[%clk 0:00:01]}  a4 {[%clk 0:01:30]} 32. Bd2 {[%clk 0:00:02]}  Ne4 {[%clk 0:01:27]} 0-1


[Site "https://www.chess.com"]

[Event "Titled Tuesday Blitz October 11 Early 2022"]
[White "Boraso, Alessio"]
[Black "Troltenier, Dirk"]
[WhiteFideId "848077"]
[BlackFideId "4606400"]
[WhiteElo "2286"]
[BlackElo "2276"]
[Result "0-1"]
[Round "07"]
[TimeControl "180+1"]
[Date "2022.10.12"]
[WhiteClock "0:00:03"]
[BlackClock "0:01:03"]

1. e4 {[%clk 0:02:25]}  e5 {[%clk 0:02:59]} 2. Nc3 {[%clk 0:02:24]}  Nf6 {[%clk 0:02:58]} 3. Nf3 {[%clk 0:02:24]}  Nc6 {[%clk 0:02:58]} 4. a3 {[%clk 0:02:24]}  Be7 {[%clk 0:02:50]} 5. d4 {[%clk 0:02:21]}  exd4 {[%clk 0:02:50]} 6. Nxd4 {[%clk 0:02:21]}  Nxd4 {[%clk 0:02:50]} 7. Qxd4 {[%clk 0:02:21]}  d6 {[%clk 0:02:51]} 8. Bc4 {[%clk 0:02:21]}  O-O {[%clk 0:02:49]} 9. O-O {[%clk 0:02:21]}  Be6 {[%clk 0:02:49]} 10. f3 {[%clk 0:02:17]}  c6 {[%clk 0:02:45]} 11. Be3 {[%clk 0:02:10]}  d5 {[%clk 0:02:32]} 12. exd5 {[%clk 0:02:08]}  cxd5 {[%clk 0:02:32]} 13. Bb3 {[%clk 0:01:57]}  b6 {[%clk 0:02:32]} 14. Rad1 {[%clk 0:01:53]}  Qc7 {[%clk 0:02:26]} 15. Kh1 {[%clk 0:01:44]}  Rfd8 {[%clk 0:02:12]} 16. Qf4 {[%clk 0:01:08]}  Qxf4 {[%clk 0:01:54]} 17. Bxf4 {[%clk 0:01:08]}  d4 {[%clk 0:01:55]} 18. Bxe6 {[%clk 0:01:04]}  dxc3 {[%clk 0:01:54]} 19. Bb3 {[%clk 0:00:46]}  cxb2 {[%clk 0:01:50]} 20. a4 {[%clk 0:00:44]}  Rxd1 {[%clk 0:01:45]} 21. Rxd1 {[%clk 0:00:44]}  Rd8 {[%clk 0:01:45]} 22. Rxd8+ {[%clk 0:00:32]}  Bxd8 {[%clk 0:01:42]} 23. Ba2 {[%clk 0:00:33]}  Nd5 {[%clk 0:01:32]} 24. Bd2 {[%clk 0:00:29]}  Bg5 {[%clk 0:01:19]} 25. f4 {[%clk 0:00:17]}  Bxf4 {[%clk 0:01:12]} 26. Bxf4 {[%clk 0:00:09]}  Nxf4 {[%clk 0:01:12]} 27. a5 {[%clk 0:00:04]}  Ne2 {[%clk 0:01:06]} 28. c4 {[%clk 0:00:03]}  Nc3 {[%clk 0:01:03]} 0-1


[Site "https://www.chess.com"]

[Event "Titled Tuesday Blitz October 11 Early 2022"]
[White "Boros, Denes"]
[Black "Kamsky, Gata"]
[WhiteFideId "722340"]
[BlackFideId "2000024"]
[WhiteElo "2464"]
[BlackElo "2666"]
[Result "0-1"]
[Round "07"]
[TimeControl "180+1"]
[Date "2022.10.11"]
[WhiteClock "0:00:15"]
[BlackClock "0:00:19"]

1. e4 {[%clk 0:02:38]}  e5 {[%clk 0:02:57]} 2. Nf3 {[%clk 0:02:36]}  Nc6 {[%clk 0:02:56]} 3. Bc4 {[%clk 0:02:36]}  Nf6 {[%clk 0:02:55]} 4. d3 {[%clk 0:02:36]}  h6 {[%clk 0:02:55]} 5. Nc3 {[%clk 0:02:36]}  d6 {[%clk 0:02:55]} 6. h3 {[%clk 0:02:35]}  g6 {[%clk 0:02:53]} 7. Be3 {[%clk 0:02:34]}  Bg7 {[%clk 0:02:53]} 8. Qd2 {[%clk 0:02:34]}  Na5 {[%clk 0:02:52]} 9. g4 {[%clk 0:02:26]}  Nxc4 {[%clk 0:02:36]} 10. dxc4 {[%clk 0:02:27]}  b6 {[%clk 0:02:36]} 11. Ng1 {[%clk 0:02:06]}  Bb7 {[%clk 0:02:27]} 12. f3 {[%clk 0:02:06]}  h5 {[%clk 0:02:26]} 13. g5 {[%clk 0:02:05]}  Nd7 {[%clk 0:02:17]} 14. Nge2 {[%clk 0:02:03]}  Nc5 {[%clk 0:02:16]} 15. Nd5 {[%clk 0:02:00]}  Ne6 {[%clk 0:02:10]} 16. h4 {[%clk 0:01:57]}  c6 {[%clk 0:02:07]} 17. Ndc3 {[%clk 0:01:52]}  Qe7 {[%clk 0:02:01]} 18. O-O-O {[%clk 0:01:42]}  Rd8 {[%clk 0:01:54]} 19. Kb1 {[%clk 0:01:42]}  Rd7 {[%clk 0:01:45]} 20. Rhf1 {[%clk 0:01:24]}  O-O {[%clk 0:01:38]} 21. Ng3 {[%clk 0:01:13]}  Rfd8 {[%clk 0:01:27]} 22. Nf5 {[%clk 0:01:03]}  gxf5 {[%clk 0:01:25]} 23. exf5 {[%clk 0:01:04]}  d5 {[%clk 0:01:25]} 24. fxe6 {[%clk 0:00:51]}  Qxe6 {[%clk 0:01:23]} 25. cxd5 {[%clk 0:00:51]}  cxd5 {[%clk 0:01:22]} 26. Bg1 {[%clk 0:00:52]}  Qh3 {[%clk 0:00:55]} 27. Qe1 {[%clk 0:00:42]}  Qf5 {[%clk 0:00:34]} 28. f4 {[%clk 0:00:28]}  d4 {[%clk 0:00:32]} 29. fxe5 {[%clk 0:00:28]}  Qxe5 {[%clk 0:00:32]} 30. Qxe5 {[%clk 0:00:26]}  Bxe5 {[%clk 0:00:32]} 31. Ne2 {[%clk 0:00:27]}  Ba6 {[%clk 0:00:30]} 32. Rfe1 {[%clk 0:00:27]}  d3 {[%clk 0:00:30]} 33. Nc3 {[%clk 0:00:25]}  Bg3 {[%clk 0:00:26]} 34. Ne4 {[%clk 0:00:19]}  dxc2+ {[%clk 0:00:23]} 35. Kxc2 {[%clk 0:00:20]}  Bd3+ {[%clk 0:00:23]} 36. Kb3 {[%clk 0:00:15]}  Bc4+ {[%clk 0:00:19]} 0-1


[Site "https://www.chess.com"]

[Event "Titled Tuesday Blitz October 11 Early 2022"]
[White "Carrasco Miranda, Andres"]
[Black "Fernandez Hernandez, Gerardo"]
[WhiteFideId "3405990"]
[BlackFideId "2207400"]
[WhiteElo "2183"]
[BlackElo "2161"]
[Result "1-0"]
[Round "07"]
[TimeControl "180+1"]
[Date "2022.10.12"]
[WhiteClock "0:01:46"]
[BlackClock "0:00:29"]

1. d4 {[%clk 0:03:00]}  Nf6 {[%clk 0:02:59]} 2. c4 {[%clk 0:03:01]}  c5 {[%clk 0:02:58]} 3. d5 {[%clk 0:03:00]}  b5 {[%clk 0:02:57]} 4. cxb5 {[%clk 0:03:01]}  a6 {[%clk 0:02:57]} 5. bxa6 {[%clk 0:03:02]}  g6 {[%clk 0:02:57]} 6. Nc3 {[%clk 0:03:01]}  Bg7 {[%clk 0:02:57]} 7. a7 {[%clk 0:03:01]}  Rxa7 {[%clk 0:02:55]} 8. e4 {[%clk 0:03:02]}  O-O {[%clk 0:02:49]} 9. Nf3 {[%clk 0:03:02]}  d6 {[%clk 0:02:48]} 10. Be2 {[%clk 0:03:01]}  Ba6 {[%clk 0:02:41]} 11. O-O {[%clk 0:03:01]}  Qa5 {[%clk 0:02:36]} 12. Bd2 {[%clk 0:03:00]}  Bxe2 {[%clk 0:02:33]} 13. Qxe2 {[%clk 0:02:58]}  Qa6 {[%clk 0:02:33]} 14. Qxa6 {[%clk 0:02:55]}  Nxa6 {[%clk 0:02:31]} 15. e5 {[%clk 0:02:27]}  Nd7 {[%clk 0:01:51]} 16. exd6 {[%clk 0:02:25]}  exd6 {[%clk 0:01:51]} 17. Nb5 {[%clk 0:02:25]}  Rb7 {[%clk 0:01:45]} 18. a4 {[%clk 0:02:23]}  Bxb2 {[%clk 0:01:37]} 19. Rab1 {[%clk 0:02:22]}  Be5 {[%clk 0:01:33]} 20. Nxe5 {[%clk 0:02:22]}  dxe5 {[%clk 0:01:34]} 21. Bc3 {[%clk 0:02:10]}  Nc7 {[%clk 0:01:26]} 22. Nxc7 {[%clk 0:02:05]}  Rxc7 {[%clk 0:01:27]} 23. Rfe1 {[%clk 0:02:01]}  Ra8 {[%clk 0:01:19]} 24. f4 {[%clk 0:01:56]}  exf4 {[%clk 0:01:09]} 25. Re7 {[%clk 0:01:56]}  Raa7 {[%clk 0:01:00]} 26. Rb8+ {[%clk 0:01:46]}  Nf8 {[%clk 0:00:59]} 27. Ree8 {[%clk 0:01:46]}  h5 {[%clk 0:00:29]} 28. Rxf8+ {[%clk 0:01:45]}  Kh7 {[%clk 0:00:29]} 29. Rh8# {[%clk 0:01:46]} 1-0


[Site "https://www.chess.com"]